fUSD/lending_fUSD_20260318
["ID","MTS","AMOUNT","RATE_DAILY","PERIOD"]
[408517618,1773809432024,-500.0,0.00015058,2]
[408517619,1773809432033,-500.0,0.00015058,2]
[408517620,1773809432042,-500.0,0.00015058,2]
[408517621,1773809432057,-500.0,0.00015058,2]
[408517622,1773809432067,-289.3873478,0.00015058,2]
[408517623,1773809432084,-500.0,0.00015153,2]
[408517624,1773809432106,-2000.0,0.00015241,2]
[408517625,1773809432120,-577.39711375,0.00015282,2]
[408517626,1773809432129,-9211.34798985,0.00015294,2]
[408517627,1773809432138,-166.66,0.00015309,2]
[408517628,1773809432147,-9552.16786547,0.00015349,2]
[408517629,1773809432156,-548.34,0.00015386,2]
[408517630,1773809432166,-500.0,0.00015394,2]
[408517631,1773809432175,-276.16688392,0.00015394,2]
[408517632,1773809432184,-500.0,0.00015394,2]
[408517633,1773809432194,-500.0,0.00015394,2]
[408517634,1773809432204,-500.0,0.00015394,2]
[408517635,1773809432222,-500.0,0.00015394,2]
[408517636,1773809432237,-500.0,0.00015394,2]
[408517637,1773809432247,-500.0,0.00015394,2]
[408517638,1773809432256,-500.0,0.00015394,2]
[408517639,1773809432265,-532.47261922,0.00015394,2]
[408517640,1773809432275,-500.0,0.00015394,2]
[408517641,1773809432284,-500.0,0.00015394,2]
[408517642,1773809432293,-500.0,0.00015394,2]
[408517643,1773809432302,-500.0,0.00015394,2]
[408517644,1773809432311,-500.0,0.00015394,2]
[408517645,1773809432320,-500.0,0.00015394,2]
[408517646,1773809432329,-500.0,0.00015394,2]
[408517647,1773809432339,-500.0,0.00015394,2]
[408517648,1773809432349,-268.07906385,0.00015394,2]
[408517649,1773809432359,-500.0,0.00015394,2]
[408517650,1773809432368,-750.0,0.00015394,2]
[408517651,1773809432377,-500.0,0.00015394,2]
[408517652,1773809432387,-750.0,0.00015394,2]
[408517653,1773809432396,-500.0,0.00015394,2]
[408517654,1773809432405,-202.18368162,0.00015394,2]
[408517655,1773809432414,-750.0,0.00015394,2]
[408517656,1773809432424,-500.0,0.00015394,2]
[408517657,1773809432433,-750.0,0.00015394,2]
[408517658,1773809432443,-500.0,0.00015394,2]
[408517659,1773809432452,-750.0,0.00015394,2]
[408517660,1773809432462,-500.0,0.00015394,2]
[408517661,1773809432471,-750.0,0.00015394,2]
[408517662,1773809432480,-500.0,0.00015394,2]
[408517663,1773809432490,-750.0,0.00015394,2]
[408517664,1773809432500,-642.37146389,0.00015394,2]
[408517665,1773809432510,-750.0,0.00015394,2]
[408517666,1773809432521,-250.0,0.00015394,2]
[408517667,1773809432532,-750.0,0.00015394,2]
[408517668,1773809432543,-250.0,0.00015394,2]
[408517669,1773809432553,-200.0,0.00015394,2]
[408517670,1773809432563,-750.0,0.00015394,2]
[408517671,1773809432572,-250.0,0.00015394,2]
[408517672,1773809432582,-750.0,0.00015394,2]
[408517673,1773809432591,-250.0,0.00015394,2]
[408517674,1773809432601,-151.0,0.00015394,2]
[408517675,1773809432611,-283.58812189,0.00015394,2]
[408517676,1773809432620,-250.0,0.00015394,2]
[408517677,1773809432629,-151.0,0.00015394,2]
[408517678,1773809432638,-151.0,0.00015394,2]
[408517679,1773809432764,-151.0,0.00015394,2]
[408517680,1773809432774,-250.0,0.00015394,2]
[408517681,1773809432783,-151.0,0.00015394,2]
[408517682,1773809432792,-153.61478955,0.00015394,2]
[408517683,1773809432801,-250.0,0.00015394,2]
[408517684,1773809432810,-151.0,0.00015394,2]
[408517685,1773809432819,-250.0,0.00015394,2]
[408517686,1773809432828,-165.99030755,0.00015394,2]
[408517687,1773809432837,-500.0,0.00015394,2]
[408517688,1773809432847,-500.0,0.00015394,2]
[408517689,1773809432856,-8407.28441446,0.00015404,2]
[408517690,1773809437929,-1498.31366204,0.00015404,2]
[408517691,1773809437945,-186.40037518,0.00015414,2]
[408517692,1773809437963,-6330.09649591,0.00015414,2]
[408517693,1773809437980,-1287.95312891,0.00015414,2]
[408517694,1773809437994,-613.90626406,0.00015421,2]
[408517695,1773809438024,-580.23789574,0.00015421,2]
[408517696,1773809438041,-558.2758402,0.00015421,2]
[408517697,1773809438056,-3240.0,0.00015437,2]
[408517698,1773809438070,-176.02541218,0.00015459,2]
[408517699,1773809438085,-1500.0,0.00015461,2]
[408517700,1773809438099,-303.440082,0.00015499,2]
[408517701,1773809438114,-166.66,0.00015619,2]
[408517702,1773809438128,-391.0,0.00015643,2]
[408517703,1773809438142,-391.0,0.00015751,2]
[408517704,1773809438156,-6632.1507,0.0001584,2]
[408517705,1773809438170,-2500.0,0.000159,2]
[408517706,1773809438184,-800.0,0.000159,5]
[408517707,1773809438199,-17134.98174373,0.0001591,2]
[408517708,1773809438213,-2629.12472663,0.0001591,2]
[408517709,1773809438227,-166.66,0.00015928,2]
[408517710,1773809438241,-200.6338,0.0001594,2]
[408517711,1773809438255,-200.6338,0.0001594,2]
[408517712,1773809438269,-200.6338,0.0001594,2]
[408517713,1773809438284,-9093.72241598,0.00015945,2]
[408517714,1773809438297,-163.297,0.00015946,2]
[408517715,1773809438312,-1120.696,0.00015946,2]
[408517716,1773809438326,-1680.0,0.00015954,2]
[408517717,1773809438340,-391.0,0.00015954,2]
[408517718,1773809438354,-605.39,0.00015955,2]
[408517719,1773809438369,-501.55270844,0.00015973,2]
[408517720,1773809438529,-500.0,0.00015973,2]
[408517721,1773809438550,-500.0,0.00015973,2]
[408517722,1773809438559,-500.0,0.00015973,2]
[408517723,1773809438568,-501.44814979,0.00015973,2]
[408517724,1773809438577,-500.0,0.00015973,2]
[408517725,1773809438586,-1500.0,0.00015982,2]
[408517726,1773809438595,-600.0,0.00015982,2]
[408517727,1773809438603,-500.0,0.00015999,2]
[408517728,1773809438612,-500.0,0.00015999,2]
[408517729,1773809438621,-500.0,0.00015999,2]
[408517730,1773809438630,-500.0,0.00015999,2]
[408517731,1773809438639,-500.0,0.00015999,2]
[408517732,1773809438648,-630.12728446,0.00015999,2]
[408517733,1773809438657,-500.0,0.00015999,2]
[408517734,1773809438666,-500.0,0.00015999,2]
[408517735,1773809438675,-44043.88094036,0.00016,2]
[408517736,1773809438689,-1313.85939277,0.00016,2]
[408517737,1773809438700,-404.8955701,0.00016,2]
[408517738,1773809438710,-3834.3591541,0.00016,2]
[408517739,1773809438723,-1181.31724058,0.00016,2]
[408517740,1773809438760,-1499.25322416,0.00016,2]
[408517743,1773809440207,-300846.745044,0.00016,2]
[408517750,1773809442912,-778.74518629,0.00016,2]
[408517751,1773809442923,-51116.85074764,0.00016,2]
[408517752,1773809442936,-21001.2735,0.00016045,2]
[408517753,1773809442946,-5888.0,0.00016056,2]
[408517754,1773809442956,-391.0,0.00016064,2]
[408517755,1773809442965,-8957.3862214,0.00016091,2]
[408517756,1773809442977,-521.22781756,0.000161,2]
[408517757,1773809442987,-63453.72476017,0.000161,2]
[408517758,1773809442998,-6150.40569559,0.000161,2]
[408517759,1773809443024,-7772.6369773,0.000161,2]
[408517763,1773809445845,-37336.1643656,0.000161,2]
[408517764,1773809446114,-7420.20000001,0.000161,2]
[408517765,1773809446169,-1524.51834128,0.000161,2]
[408517766,1773809446181,-7388.10291589,0.000161,2]
[408517767,1773809446192,-6000.0,0.000161,2]
[408517771,1773809717477,5000.0,0.00032877,120]
[408517772,1773809808829,161.29,7.59e-05,2]
[408517773,1773809809315,161.29,9.487e-05,2]
[408517774,1773809809521,161.29,0.00011385,2]
[408517778,1773810511529,1612.17,0.00011507,2]
[408517795,1773810568148,-150.0,0.00013281,2]
[408517796,1773810568167,-5184.62919717,0.00013282,2]
[408517797,1773810632058,-675.352,0.00013181,2]
[408517802,1773810632167,-524.648,0.00013181,2]
[408517804,1773810632179,-1677.7140399,0.00013182,2]
[408517805,1773810632223,-7911.12828238,0.00013182,2]
[408517806,1773810632232,-300.0,0.00013281,2]
[408517807,1773810632242,-55451.6987006,0.00013282,2]
[408517808,1773810632254,-91839.70187955,0.00013282,2]
[408517809,1773810632281,-14301.21777574,0.00013282,2]
[408517822,1773810638100,-545.14865765,0.00013282,2]
[408517823,1773810638111,-387.85191081,0.00013282,2]
[408517824,1773810638122,-431.69598331,0.00013282,2]
[408517825,1773810638134,-1337.35,0.00013282,2]
[408517826,1773810638159,-878.96667,0.00013282,2]
[408517827,1773810638170,-21317.93582585,0.00013282,2]
[408517828,1773810638180,-161.29,0.00013282,2]
[408517829,1773810638189,-9588.84232227,0.00013706,2]
[408517830,1773810638198,-195.0,0.00013803,2]
[408517831,1773810638207,-613.46427993,0.00014016,2]
[408517832,1773810638216,-150.0,0.000142,2]
[408517833,1773810638225,-9588.84232227,0.0001423,2]
[408517834,1773810638235,-152.0,0.00014319,3]
[408517835,1773810638243,-213.0,0.00014397,2]
[408517836,1773810638253,-1680.0,0.00014499,2]
[408517837,1773810638267,-300.0,0.00014499,2]
[408517838,1773810638277,-365.3046169,0.00014499,2]
[408517839,1773810638286,-1382.05658103,0.00014499,2]
[408517840,1773810638296,-420.0,0.00014561,2]
[408517841,1773810638305,-600.0,0.0001461,2]
[408517842,1773810638315,-195.0,0.0001461,2]
[408517845,1773810638463,-225.64753407,0.0001461,2]
[408517847,1773810638474,-500.0,0.0001461,2]
[408517848,1773810638484,-300.0,0.0001461,2]
[408517849,1773810638494,-600.0,0.0001461,2]
[408517852,1773810638503,-200.0,0.00014669,2]
[408517855,1773810638513,-9588.84232227,0.00014755,2]
[408517856,1773810638523,-228.0,0.00014794,2]
[408517857,1773810638532,-288.74978268,0.00014905,2]
[408517858,1773810638542,-521.68230757,0.00014909,2]
[408517859,1773810638551,-536.98632402,0.00014909,2]
[408517860,1773810638561,-152.0,0.00014997,4]
[408517861,1773810638570,-250.0,0.00015,2]
[408517862,1773810638579,-228.0,0.0001505,2]
[408517863,1773810638589,-168.0,0.00015069,2]
[408517864,1773810638598,-1500.0,0.00015082,2]
[408517865,1773810638608,-168.0,0.00015136,2]
[408517866,1773810638617,-168.0,0.0001514,2]
[408517867,1773810638628,-35000.3935,0.00015156,2]
[408517868,1773810638637,-168.0,0.00015158,2]
[408517869,1773810638647,-4587.29378321,0.00015166,2]
[408517870,1773810638656,-161.29,0.0001518,2]
[408517871,1773810638665,-168.0,0.00015193,2]
[408517872,1773810638675,-228.0,0.00015199,2]
[408517873,1773810638685,-293.36,0.00015251,2]
[408517874,1773810638694,-1811.1223,0.00015256,2]
[408517875,1773810638703,-15630.7433,0.00015256,2]
[408517876,1773810638713,-9588.84232227,0.00015279,2]
[408517877,1773810638722,-714.55298578,0.00015284,2]
[408517878,1773810638732,-532.75297208,0.00015285,2]
[408517879,1773810638742,-151.0,0.00015285,2]
[408517880,1773810638751,-529.17570437,0.00015285,2]
[408517881,1773810638761,-213.5884,0.00015294,2]
[408517882,1773810638770,-500.0,0.00015294,2]
[408517883,1773810638780,-500.0,0.00015294,2]
[408517884,1773810638790,-1377.06999647,0.00015294,2]
[408517885,1773810638799,-8882.6885148,0.00015294,2]
[408517886,1773810638809,-250.0,0.00015294,2]
[408517887,1773810638818,-750.0,0.00015294,2]
[408517888,1773810638828,-500.0,0.00015294,2]
[408517889,1773810638838,-500.0,0.00015294,2]
[408517890,1773810638847,-250.0,0.00015294,2]
[408517891,1773810638856,-250.0,0.00015294,2]
[408517892,1773810638866,-250.0,0.00015294,2]
[408517893,1773810638876,-387.50682198,0.00015294,2]
[408517894,1773810638886,-274.1930115,0.00015294,2]
[408517895,1773810638897,-181.95370885,0.00015294,2]
[408517896,1773810638906,-151.0,0.00015294,2]
[408517897,1773810638916,-151.0,0.00015294,2]
[408517898,1773810638926,-151.0,0.00015294,2]
[408517899,1773810638936,-201.04041191,0.00015294,2]
[408517900,1773810638945,-500.0,0.00015294,2]
[408517901,1773810638955,-500.0,0.00015294,2]
[408517902,1773810638965,-500.0,0.00015294,2]
[408517903,1773810638975,-500.0,0.00015294,2]
[408517904,1773810638984,-500.0,0.00015294,2]
[408517905,1773810638994,-500.0,0.00015294,2]
[408517906,1773810639003,-500.0,0.00015294,2]
[408517907,1773810639013,-500.0,0.00015294,2]
[408517908,1773810639022,-500.0,0.00015294,2]
[408517909,1773810639036,-500.0,0.00015294,2]
[408517910,1773810639045,-500.0,0.00015294,2]
[408517911,1773810639055,-500.0,0.00015294,2]
[408517912,1773810639065,-500.0,0.00015294,2]
[408517913,1773810639075,-907.0,0.00015315,2]
[408517914,1773810639085,-500.0,0.00015331,2]
[408517915,1773810639094,-500.0,0.00015331,2]
[408517916,1773810639105,-500.0,0.00015331,2]
[408517917,1773810639115,-500.0,0.00015331,2]
[408517918,1773810639124,-500.0,0.00015331,2]
[408517919,1773810639135,-500.0,0.00015331,2]
[408517920,1773810639146,-500.0,0.00015331,2]
[408517921,1773810639155,-500.0,0.00015331,2]
[408517922,1773810639165,-500.0,0.00015331,2]
[408517923,1773810639173,-500.0,0.00015331,2]
[408517924,1773810639183,-500.0,0.00015331,2]
[408517925,1773810639193,-500.0,0.00015331,2]
[408517926,1773810639203,-500.0,0.00015331,2]
[408517927,1773810639214,-500.0,0.00015331,2]
[408517928,1773810639224,-579.31038172,0.00015331,2]
[408517929,1773810639233,-500.0,0.00015331,2]
[408517930,1773810639242,-500.0,0.00015331,2]
[408517931,1773810639251,-500.0,0.00015331,2]
[408517932,1773810639261,-42202.45097822,0.00015332,2]
[408517933,1773810639273,-1335.31448282,0.00015332,2]
[408517934,1773810639285,-12944.87159537,0.00015332,2]
[408517935,1773810639294,-500.0,0.00015349,2]
[408517936,1773810639303,-8790.61893043,0.00015349,2]
[408517937,1773810639315,-420.72905942,0.00015349,2]
[408517938,1773810639324,-1200.0,0.00015356,2]
[408517939,1773810639340,-600.0,0.00015356,2]
[408517940,1773810639350,-168.0,0.00015385,2]
[408517941,1773810639359,-500.0,0.00015393,2]
[408517942,1773810639369,-262.02094058,0.00015393,2]
[408517943,1773810639383,-248.77979887,0.00015393,2]
[408517944,1773810639393,-53.70393536,0.00015394,2]
[408517945,1773810639404,-1855.56936711,0.00015394,2]
[408517946,1773810639414,-2176.16155516,0.00015394,2]
[408517947,1773810639423,-8683.16737052,0.00015394,2]
[408517948,1773810639432,-1875.70738714,0.00015394,2]
[408517949,1773810639447,-186.16912307,0.00015394,2]
[408517950,1773810639456,-500.0,0.00015404,2]
[408517951,1773810639466,-168.0,0.00015444,2]
[408517952,1773810639476,-168.0,0.00015445,2]
[408517953,1773810639486,-404.52877024,0.00015456,2]
[408517954,1773810639495,-200.76132441,0.00015459,2]
[408517955,1773810639507,-299.23867559,0.00015459,2]
[408517956,1773810639518,-168.0,0.00015485,2]
[408517957,1773810639528,-309.0,0.00015504,2]
[408517958,1773810639543,-793.15836269,0.00015507,2]
[408517959,1773810639592,-167.27208182,0.00015507,2]
[408517960,1773810639611,-987.09350095,0.00015507,2]
[408517961,1773810639623,-1164.20361154,0.00015507,2]
[408517962,1773810639653,-888.272443,0.00015507,2]
[408517963,1773810639662,-111.578157,0.00015514,2]
[408517964,1773810639673,-388.421843,0.00015514,2]
[408517965,1773810639683,-168.0,0.00015546,2]
[408517966,1773810639692,-444.090087,0.00015569,2]
[408517967,1773810640288,-55.909913,0.00015569,2]
[408517968,1773810640298,-209.218687,0.00015624,2]
[408517969,1773810640503,-290.781313,0.00015624,2]
[408517970,1773810640513,-152.0,0.00015674,5]
[408517971,1773810640523,-500.0,0.00015679,2]
[408517972,1773810640533,-182.049586,0.00015701,7]
[408517973,1773810640542,-155.38604053,0.00015734,2]
[408517974,1773810640551,-150.0,0.00015734,2]
[408517975,1773810640563,-150.0,0.00015734,2]
[408517976,1773810640573,-152.3051133,0.00015734,2]
[408517977,1773810640582,-200.0,0.00015734,2]
[408517978,1773810640591,-500.0,0.00015734,2]
[408517979,1773810640600,-193.72885023,0.00015773,2]
[408517980,1773810640609,-500.0,0.00015789,2]
[408517981,1773810640618,-9588.84232227,0.00015803,2]
[408517982,1773810640628,-534.00512476,0.00015844,2]
[408517983,1773810640637,-3793.07816653,0.00015872,2]
[408517984,1773810640646,-160.0,0.00015872,7]
[408517985,1773810640655,-179.919713,0.00015872,7]
[408517986,1773810640664,-199.839426,0.00015872,7]
[408517987,1773810640674,-183.473242,0.00015872,7]
[408517988,1773810640684,-287.782018,0.00015872,7]
[408517989,1773810640694,-4000.0,0.00015895,2]
[408517990,1773810640703,-154.33213207,0.00015934,2]
[408517991,1773810640713,-243.34848,0.0001594,2]
[408517992,1773810640722,-243.34848,0.0001594,2]
[408517993,1773810640731,-243.34848,0.0001594,2]
[408517994,1773810640741,-1787.0,0.00015949,2]
[408517995,1773810640750,-1585.671,0.00015955,2]
[408517996,1773810640762,-174.533,0.00015955,2]
[408517997,1773810640773,-151.0,0.00015955,2]
[408517998,1773810640782,-151.0,0.00015955,2]
[408517999,1773810640792,-151.0,0.00015955,2]
[408518000,1773810640801,-151.0,0.00015955,2]
[408518001,1773810640811,-587.0,0.00015964,2]
[408518002,1773810640820,-500.0,0.00015999,2]
[408518003,1773810640829,-209.50473574,0.00015999,2]
[408518004,1773810640839,-500.0,0.00015999,2]
[408518005,1773810640848,-507.88785737,0.00015999,2]
[408518006,1773810640857,-470.97332281,0.00015999,2]
[408518007,1773810640866,-177.53,0.00016,7]
[408518008,1773810640876,-4234.8,0.00016,2]
[408518009,1773810640885,-30183.44318925,0.00016,2]
[408518011,1773810640895,-2300.48413581,0.00016008,2]
[408518012,1773810640904,-14000.3333182,0.00016021,2]
[408518013,1773810640914,-3341.7028041,0.00016021,2]
[408518014,1773810640923,-1152.15935,0.00016021,2]
[408518015,1773810640933,-13899.4797106,0.00016021,2]
[408518016,1773810640942,-3370.2596537,0.00016021,2]
[408518017,1773810640951,-12259.3200807,0.00016021,2]
[408518018,1773810640961,-180.197057,0.00016021,2]
[408518019,1773810640970,-180.197057,0.00016021,2]
[408518020,1773810640979,-180.197057,0.00016021,2]
[408518021,1773810640989,-180.197057,0.00016021,2]
[408518022,1773810640998,-151.0,0.00016021,2]
[408518023,1773810641007,-288.90141436,0.00016026,2]
[408518024,1773810641018,-151.0,0.0001606,2]
[408518025,1773810641032,-151.0,0.0001606,2]
[408518026,1773810641041,-151.0,0.0001606,2]
[408518027,1773810641050,-193.72885017,0.00016077,2]
[408518028,1773810641059,-419.9291868,0.000161,2]
[408518029,1773810641071,-79665.24428809,0.000161,2]
[408518030,1773810641083,-3743.12051145,0.000161,2]
[408518031,1773810641107,-622.20957927,0.000161,2]
[408518032,1773810641122,-265.96,0.000161,2]
[408518033,1773810641133,-254.12738969,0.000161,2]
[408518034,1773810641147,-506.37642362,0.000161,2]
[408518035,1773810641158,-333.26194966,0.000161,2]
[408518036,1773810643132,-220.201316,0.00015701,7]
[408518037,1773810643141,-232.798684,0.000161,2]
[408518038,1773810643173,-239.9139939,0.000161,2]
[408518039,1773810643186,-20316.56938026,0.000161,2]
[408518040,1773810643404,-539.44516753,0.000161,2]
[408518041,1773810643416,-893118.93240809,0.000161,2]
[408518054,1773810646067,-151.0,0.00015584,2]
[408518055,1773810646077,-2983.18314424,0.000161,2]
[408518056,1773810646383,-151.0,0.00016021,2]
[408518057,1773810646393,-535.75848648,0.000161,2]
[408518060,1773810673400,170.93,0.00032,120]
[408518061,1773810682567,5039.87147267,0.00032876,120]
[408518063,1773810778840,7000.0,0.00032877,120]
[408518064,1773810980570,166.92,0.000328,120]
[408518065,1773811044970,2150.462006,0.0003287,120]
[408518066,1773811161045,2042.938906,0.0003287,120]
[408518067,1773811279112,5000.0,0.00032,120]
[408518068,1773811280830,5000.0,0.00032,120]
[408518069,1773811282554,5000.0,0.00032,120]
[408518070,1773811284282,5000.0,0.00032,120]
[408518071,1773811286008,5000.0,0.00032,120]
[408518072,1773811287728,5000.0,0.00032,120]
[408518073,1773811289463,5000.0,0.00032,120]
[408518074,1773811291183,5000.0,0.00032,120]
[408518075,1773811292901,5000.0,0.00032,120]
[408518076,1773811294619,5000.0,0.00032,120]
[408518077,1773811296346,5000.0,0.00032,120]
[408518078,1773811298065,5000.0,0.00032,120]
[408518079,1773811299801,5000.0,0.00032,120]
[408518080,1773811301846,5000.0,0.00032,120]
[408518081,1773811303690,5000.0,0.00032,120]
[408518082,1773811305422,5000.0,0.00032,120]
[408518083,1773811307149,5000.0,0.00032,120]
[408518084,1773811308884,5000.0,0.00032,120]
[408518085,1773811310606,5000.0,0.00032,120]
[408518086,1773811312326,5000.0,0.00032,120]
[408518087,1773811314047,5000.0,0.00032,120]
[408518088,1773811315774,5000.0,0.00032,120]
[408518089,1773811317612,5000.0,0.00032,120]
[408518090,1773811319242,5000.0,0.00032,120]
[408518091,1773811320957,5000.0,0.00032,120]
[408518092,1773811322700,5000.0,0.00032,120]
[408518093,1773811324396,5000.0,0.00032,120]
[408518094,1773811326105,8215.0,0.00032,120]
[408518122,1773811832227,-3240.0,0.00014572,2]
[408518123,1773811832237,-549.02,0.00014582,2]
[408518124,1773811832246,-296.19696011,0.000146,2]
[408518125,1773811832255,-500.28,0.00014619,2]
[408518126,1773811832264,-210.67,0.00014631,2]
[408518127,1773811832273,-200.0,0.00014634,2]
[408518128,1773811832283,-2000.0,0.00014665,2]
[408518129,1773811832293,-166.66,0.00014667,2]
[408518130,1773811832303,-326.79,0.00014826,2]
[408518131,1773811832312,-160.16,0.00014848,2]
[408518132,1773811832444,-1200.0,0.00014975,2]
[408518133,1773811832454,-166.66,0.00014976,2]
[408518134,1773811832463,-300.0,0.00015054,2]
[408518136,1773811832473,-300.0,0.00015054,2]
[408518137,1773811832484,-20909.0258,0.00015056,2]
[408518138,1773811832493,-198559.8838,0.00015056,2]
[408518139,1773811832503,-1852.42,0.00015133,2]
[408518140,1773811832512,-300.0,0.00015146,2]
[408518141,1773811832523,-151.0,0.00015147,2]
[408518142,1773811832533,-151.0,0.00015147,2]
[408518143,1773811832542,-151.0,0.00015147,2]
[408518144,1773811832551,-268.57670729,0.00015147,2]
[408518145,1773811832560,-151.0,0.00015147,2]
[408518146,1773811832569,-151.0,0.00015147,2]
[408518147,1773811832579,-151.0,0.00015147,2]
[408518148,1773811832588,-151.0,0.00015147,2]
[408518149,1773811832597,-151.0,0.00015147,2]
[408518150,1773811832609,-151.0,0.00015147,2]
[408518151,1773811832619,-151.0,0.00015147,2]
[408518152,1773811832628,-151.0,0.00015147,2]
[408518153,1773811832638,-151.0,0.00015147,2]
[408518154,1773811832647,-151.0,0.00015147,2]
[408518155,1773811832657,-151.0,0.00015147,2]
[408518156,1773811832666,-151.0,0.00015147,2]
[408518157,1773811832675,-151.0,0.00015147,2]
[408518158,1773811832685,-151.0,0.00015147,2]
[408518159,1773811832694,-151.0,0.00015147,2]
[408518160,1773811832704,-153.7981562,0.00015147,2]
[408518161,1773811832713,-674.83,0.00015147,2]
[408518162,1773811832723,-2603.05,0.00015152,2]
[408518163,1773811832732,-710.21256861,0.00015156,2]
[408518164,1773811832743,-571.2987718,0.00015165,2]
[408518165,1773811832753,-5595.55,0.00015184,2]
[408518166,1773811832763,-153.40261559,0.00015185,2]
[408518167,1773811832774,-4632.88450534,0.00015194,2]
[408518168,1773811832784,-32970.7912,0.00015194,2]
[408518169,1773811832793,-166.66,0.00015285,2]
[408518170,1773811832803,-500.0,0.00015294,2]
[408518171,1773811832812,-241.92232756,0.00015294,2]
[408518172,1773811832822,-250.0,0.00015294,2]
[408518173,1773811832831,-250.0,0.00015294,2]
[408518174,1773811832840,-250.0,0.00015294,2]
[408518175,1773811832849,-250.0,0.00015294,2]
[408518176,1773811832859,-267.18668564,0.00015294,2]
[408518177,1773811832868,-151.0,0.00015294,2]
[408518178,1773811832877,-156.587,0.00015294,2]
[408518179,1773811832886,-194.04822186,0.00015294,2]
[408518180,1773811832896,-210.31364022,0.00015294,2]
[408518181,1773811832905,-500.0,0.00015294,2]
[408518182,1773811832915,-500.0,0.00015294,2]
[408518183,1773811832924,-500.0,0.00015294,2]
[408518184,1773811832933,-500.0,0.00015294,2]
[408518185,1773811832942,-500.0,0.00015294,2]
[408518186,1773811832951,-260.4103811,0.00015294,2]
[408518187,1773811832960,-500.0,0.00015294,2]
[408518188,1773811832969,-500.0,0.00015294,2]
[408518189,1773811832978,-500.0,0.00015294,2]
[408518190,1773811832988,-595.83804272,0.00015294,2]
[408518191,1773811832997,-549.02,0.00015311,2]
[408518192,1773811833006,-821.55314475,0.00015331,2]
[408518193,1773811833015,-500.0,0.00015356,2]
[408518194,1773811833024,-1200.0,0.00015356,2]
[408518195,1773811833033,-1400.0,0.00015356,2]
[408518196,1773811833042,-674.83,0.00015421,2]
[408518197,1773811833051,-279.373275,0.00015422,2]
[408518198,1773811833061,-150.0,0.00015454,2]
[408518199,1773811833070,-4632.88450534,0.00015495,2]
[408518200,1773811833079,-166.66,0.00015593,2]
[408518201,1773811833088,-500.0,0.00015623,2]
[408518202,1773811833097,-182.0,0.00015644,2]
[408518203,1773811833107,-182.0,0.0001567,2]
[408518204,1773811833124,-182.0,0.00015686,2]
[408518205,1773811833136,-674.83,0.00015695,2]
[408518206,1773811833145,-182.0,0.00015743,2]
[408518207,1773811833154,-2528.71877769,0.00015778,2]
[408518208,1773811833163,-350.0,0.00015781,2]
[408518209,1773811833173,-4632.88450534,0.00015795,2]
[408518210,1773811833182,-270.0455652,0.00015842,2]
[408518211,1773811833192,-1044.4389956,0.00015845,2]
[408518212,1773811833201,-2000.0,0.0001589,2]
[408518213,1773811833210,-166.66,0.00015902,2]
[408518214,1773811833219,-214.6893,0.0001594,2]
[408518215,1773811833229,-214.6893,0.0001594,2]
[408518216,1773811833239,-214.6893,0.0001594,2]
[408518217,1773811833248,-154.33213208,0.00015945,2]
[408518218,1773811833257,-1520.907,0.00015954,2]